bitfinex/quotes_ETHUSD_20251006
["timestamp","ask_amount","ask_price","bid_price","bid_amount"]
[1759778003794,68.782,4704.9,4704.8,22.905405]
[1759778004492,68.782,4704.9,4704.8,27.652222]
[1759778004697,68.782,4704.9,4704.8,26.231311]
[1759778004866,70.012,4704.9,4704.8,26.231311]
[1759778005266,70.012,4704.9,4704.8,33.662789]
[1759778005862,70.012,4704.9,4704.8,19.015052]
[1759778006066,70.012,4704.9,4704.8,9.053247]
[1759778006280,71.242,4704.9,4704.8,18.168646]
[1759778006475,71.242,4704.9,4704.8,17.147322]
[1759778006996,71.2328,4704.9,4704.8,17.147322]
[1759778007365,71.2328,4704.9,4704.8,22.718678]
[1759778007565,72.4628,4704.9,4704.8,23.158678]
[1759778008388,72.4628,4704.9,4704.8,26.762087]
[1759778008689,72.4628,4704.9,4704.8,25.787087]
[1759778008996,73.6928,4704.9,4704.8,23.677469]
[1759778009198,73.6928,4704.9,4704.8,20.87389]
[1759778009402,73.6928,4704.9,4704.8,21.77147]
[1759778009902,73.6928,4704.9,4704.8,17.490028]
[1759778010065,74.9228,4704.9,4704.8,6.737222]
[1759778010466,74.9228,4704.9,4704.8,6.63722]
[1759778010697,74.9228,4704.9,4704.8,9.05822]
[1759778011400,74.9228,4704.9,4704.8,9.588837]
[1759778011588,76.2592,4704.9,4704.8,9.10745]
[1759778012382,76.2592,4704.9,4704.8,4.822]
[1759778012768,73.04527598,4704.9,4704.8,8.02108886]
[1759778012968,72.57027598,4704.9,4704.8,39.00541965]
[1759778013402,72.57027598,4704.9,4704.8,9.63580693]
[1759778013574,12.302,4705.0,4704.9,5.15904368]
[1759778013774,3.02403233,4705.0,4704.9,38.03579533]
[1759778014174,3.3e-07,4705.0,4704.9,36.1381322]
[1759778014387,3.3e-07,4705.0,4704.9,36.3507322]
[1759778014592,0.002,4705.5,4705.3,2.758863]
[1759778014875,0.4593,4707.5,4705.7,2.12504484]
[1759778015097,0.4593,4707.5,4705.4,2.76902177]
[1759778015098,0.4593,4707.5,4705.8,37.66245561]
[1759778015374,0.4593,4707.5,4706.0,2.4]
[1759778015572,0.4593,4707.5,4706.1,37.66535733]
[1759778015872,0.4593,4707.5,4706.3,2.4]
[1759778016074,0.4593,4707.5,4706.4,37.66245561]
[1759778017304,13.53200001,4706.5,4706.4,37.66245561]
[1759778017505,13.53200001,4706.5,4706.4,7.66245561]
[1759778018081,13.53200001,4706.5,4706.4,37.66245561]
[1759778018801,14.76200001,4706.5,4706.4,37.66245561]
[1759778019117,15.20960001,4706.5,4706.4,34.98274]
[1759778019411,15.20960001,4706.5,4706.4,34.672072]
[1759778019716,15.20960001,4706.5,4706.4,31.179014]
[1759778020023,14.76200001,4706.5,4706.4,31.476458]
[1759778020220,15.99200001,4706.5,4706.4,32.19573861]
[1759778020523,15.99200001,4706.5,4706.4,34.32050488]
[1759778020722,15.99200001,4706.5,4706.4,39.78604688]
[1759778021698,17.22200001,4706.5,4706.4,37.66128061]
[1759778021924,17.22200001,4706.5,4706.4,41.99404688]
[1759778022727,17.22200001,4706.5,4706.4,12.10044688]
[1759778023030,17.22200001,4706.5,4706.4,12.09944688]
[1759778023335,18.45200001,4706.5,4706.4,42.73304688]
[1759778024423,18.45200001,4706.5,4706.4,38.10604688]
[1759778024628,19.68200001,4706.5,4706.4,42.73304688]
[1759778026013,20.91200001,4706.5,4706.4,42.73304688]
[1759778027406,22.14200001,4706.5,4706.4,42.73304688]
[1759778029022,23.37200001,4706.5,4706.4,42.73304688]
[1759778030232,23.37200001,4706.5,4706.4,42.73204688]
[1759778030427,24.60200001,4706.5,4706.4,42.73204688]
[1759778031311,24.60200001,4706.5,4706.4,42.09844688]
[1759778031527,24.60200001,4706.5,4706.4,42.73204688]
[1759778031744,25.83200001,4706.5,4706.4,38.10604688]
[1759778031933,25.83200001,4706.5,4706.4,42.73204688]
[1759778033133,27.06200001,4706.5,4706.4,42.73204688]
[1759778033849,27.06200001,4706.5,4706.4,12.73204688]
[1759778034261,27.06200001,4706.5,4706.4,42.73204688]
[1759778034435,28.29200001,4706.5,4706.4,42.73204688]
[1759778034941,28.29200001,4706.5,4706.4,38.10604688]
[1759778035243,28.29200001,4706.5,4706.4,42.73204688]
[1759778035957,28.29200001,4706.5,4706.4,12.73204688]
[1759778036117,29.52200001,4706.5,4706.4,12.73204688]
[1759778036318,29.52200001,4706.5,4706.4,38.10604688]
[1759778036520,29.96960001,4706.5,4706.4,34.87052624]
[1759778036731,29.96960001,4706.5,4706.4,34.388678]
[1759778036921,29.96960001,4706.5,4706.4,36.941]
[1759778037242,30.85741321,4706.5,4706.4,19.246185]
[1759778037449,30.85741321,4706.5,4706.4,21.665185]
[1759778037656,32.08741321,4706.5,4706.4,21.665185]
[1759778038023,32.08741321,4706.5,4706.4,36.941]
[1759778038418,31.19960001,4706.5,4706.4,36.941]
[1759778039046,32.42960001,4706.5,4706.4,36.941]
[1759778039936,32.42960001,4706.5,4706.4,6.941]
[1759778040136,32.42960001,4706.5,4706.4,7.26218457]
[1759778040339,33.21200001,4706.5,4706.4,39.38695084]
[1759778040542,33.21200001,4706.5,4706.4,39.73280521]
[1759778041547,33.65960001,4706.5,4706.4,35.18903894]
[1759778041766,34.88960001,4706.5,4706.4,39.81403894]
[1759778042051,34.88960001,4706.5,4706.4,35.18903894]
[1759778042253,34.88960001,4706.5,4706.4,39.147]
[1759778042824,34.88960001,4706.5,4706.4,34.522]
[1759778043159,34.88960001,4706.5,4706.4,39.147]
[1759778043327,36.11960001,4706.5,4706.4,39.147]
[1759778043530,36.11960001,4706.5,4706.4,41.27176627]
[1759778043751,36.11960001,4706.5,4706.4,39.147]
[1759778044062,36.11960001,4706.5,4706.4,34.522]
[1759778044229,36.11960001,4706.5,4706.4,39.147]
[1759778044871,37.34960001,4706.5,4706.4,34.522]
[1759778045055,37.34960001,4706.5,4706.4,39.147]
[1759778045728,37.34960001,4706.5,4706.4,39.46380957]
[1759778046422,38.57960001,4706.5,4706.4,39.46380957]
[1759778046620,38.57960001,4706.5,4706.4,39.2534]
[1759778046821,38.57960001,4706.5,4706.4,34.6284]
[1759778047229,38.57960001,4706.5,4706.4,37.0464]
[1759778048057,39.80960001,4706.5,4706.4,37.0464]
[1759778048358,39.80960001,4706.5,4706.4,34.6284]
[1759778048559,41.72725679,4706.5,4706.4,7.918977]
[1759778048763,41.83365679,4706.5,4706.4,5.572926]
[1759778048929,41.83365679,4706.5,4706.4,7.990926]
[1759778049130,41.83365679,4706.5,4706.4,21.324181]
[1759778049447,43.06365679,4706.5,4706.4,21.324181]
[1759778050037,43.06365679,4706.5,4706.4,22.09307828]
[1759778050038,40.59200001,4706.5,4706.4,22.09307828]
[1759778050251,40.59200001,4706.5,4706.4,35.58689728]
[1759778050454,40.59200001,4706.5,4706.4,39.83266355]
[1759778050655,40.59200001,4706.5,4706.4,40.46626355]
[1759778050968,41.82200001,4706.5,4706.4,40.46626355]
[1759778051742,41.82200001,4706.5,4706.4,38.04826355]
[1759778051947,41.82200001,4706.5,4706.4,42.67326355]
[1759778052145,43.05200001,4706.5,4706.4,12.67326355]
[1759778052549,43.05200001,4706.5,4706.4,42.67326355]
[1759778053249,43.05200001,4706.5,4706.4,38.04826355]
[1759778053549,44.28200001,4706.5,4706.4,42.67326355]
[1759778054649,44.28200001,4706.5,4706.4,38.04826355]
[1759778054848,45.51200001,4706.5,4706.4,42.67326355]
[1759778056266,46.74200001,4706.5,4706.4,42.67326355]
[1759778056773,46.74200001,4706.5,4706.4,38.04826355]
[1759778056969,46.74200001,4706.5,4706.4,37.41466355]
[1759778057171,46.74200001,4706.5,4706.4,42.03966355]
[1759778058580,47.97200001,4706.5,4706.4,42.03966355]
[1759778060045,49.20200001,4706.5,4706.4,42.03966355]
[1759778060674,49.20200001,4706.5,4706.4,37.41466355]
[1759778060951,49.20200001,4706.5,4706.4,42.03866355]
[1759778061164,49.20200001,4706.5,4706.4,39.91389728]
[1759778061367,50.89880001,4706.5,4706.4,42.03866355]
[1759778061780,50.43200001,4706.5,4706.4,42.03866355]
[1759778063091,51.66200001,4706.5,4706.4,42.03866355]
[1759778064504,52.89200001,4706.5,4706.4,42.03866355]
[1759778065887,54.12200001,4706.5,4706.4,42.03866355]
[1759778066281,54.58880001,4706.5,4706.4,42.03866355]
[1759778066675,54.58880001,4706.5,4706.4,37.41466355]
[1759778066907,54.58880001,4706.5,4706.4,36.13885708]
[1759778067217,57.06188505,4706.5,4706.4,7.617343]
[1759778067373,57.06188505,4706.5,4706.4,10.034343]
[1759778067578,57.06188505,4706.5,4706.4,15.171801]
[1759778067874,57.06188505,4706.5,4706.4,15.19201]
[1759778068082,57.06188505,4706.5,4706.4,5.292306]
[1759778068308,57.06188505,4706.5,4706.4,10.109306]
[1759778068614,58.29188505,4706.5,4706.4,4.74325]
[1759778068814,58.29188505,4706.5,4706.4,2.32625]
[1759778068980,60.41660618,4706.5,4706.0,0.001]
[1759778069170,58.29188505,4706.5,4706.1,18.986183]
[1759778069370,0.4668,4706.4,4706.2,9.834917]
[1759778069571,57.82508505,4706.5,4706.3,2.417]
[1759778069776,59.05508505,4706.5,4706.3,2.417]
[1759778070205,0.4668,4706.4,4706.3,2.417]
[1759778070382,2.60362062,4706.4,4706.3,19.361571]
[1759778071306,3.83362062,4706.4,4706.3,11.332656]
[1759778072416,3.83362062,4706.4,4706.3,15.166469]
[1759778072710,5.06362062,4706.4,4706.3,15.166469]
[1759778073314,5.06362062,4706.4,4706.3,15.37376]
[1759778073784,5.06362062,4706.4,4706.3,15.118469]
[1759778073985,6.29362062,4706.4,4706.3,15.118469]
[1759778074385,6.29362062,4706.4,4706.3,17.241011]
[1759778075417,7.52362062,4706.4,4706.3,17.241011]
[1759778076284,7.52362062,4706.4,4706.3,17.240783]
[1759778076990,8.75362062,4706.4,4706.3,17.240783]
[1759778077198,8.86002062,4706.4,4706.3,17.240783]
[1759778077400,8.86002062,4706.4,4706.3,16.103803]
[1759778077919,8.86002062,4706.4,4706.3,14.652269]
[1759778078315,10.09002062,4706.4,4706.3,14.652269]
[1759778078523,10.09002062,4706.4,4706.3,14.603309]
[1759778079299,10.09002062,4706.4,4706.3,12.186309]
[1759778079500,10.09002062,4706.4,4706.3,2.417]
[1759778079715,11.32002062,4706.4,4706.2,8.553555]
[1759778079912,2.60522062,4706.3,4706.1,9.139415]
[1759778080206,2.60522062,4706.3,4706.2,2.417]
[1759778080407,4.26163204,4706.3,4706.0,0.001]
[1759778080620,2.23130172,4706.1,4706.0,0.001]
[1759778080822,2.23130172,4706.1,4706.0,2.418]
[1759778081008,2.69970172,4706.1,4706.0,2.418]
[1759778081211,3.92970172,4706.1,4706.0,0.001]
[1759778081410,6.06652234,4706.1,4706.0,2.418]
[1759778082828,7.29652234,4706.1,4706.0,2.418]
[1759778084107,8.52652234,4706.1,4706.0,2.418]
[1759778085415,9.75652234,4706.1,4706.0,2.418]
[1759778085826,7.63162062,4706.1,4706.0,2.418]
[1759778086336,7.63162062,4706.1,4706.0,32.418]
[1759778086337,7.16322062,4706.1,4706.0,32.418]
[1759778086629,6.7248,4706.1,4706.0,7.786243]
[1759778087334,6.7248,4706.1,4706.0,2.418]
[1759778087938,6.7248,4706.1,4706.0,7.589841]
[1759778088114,7.9548,4706.1,4706.0,10.138892]
[1759778088430,7.9548,4706.1,4706.0,10.139106]
[1759778088801,7.9548,4706.1,4706.0,7.722106]
[1759778089129,7.9548,4706.1,4706.0,6.876699]
[1759778089520,9.1848,4706.1,4706.0,6.321796]
[1759778089726,11.19209972,4706.1,4706.0,5.739796]
[1759778090523,11.19209972,4706.1,4706.0,2.418]
[1759778091031,11.95369972,4706.1,4706.0,5.599029]
[1759778091206,9.9464,4706.1,4706.0,5.599029]
[1759778091407,9.9464,4706.1,4706.0,2.418]
[1759778091815,9.9464,4706.1,4706.0,13.959351]
[1759778092439,11.1764,4706.1,4706.0,13.959351]
[1759778093409,11.6448,4706.1,4706.0,13.959351]
[1759778093636,11.6448,4706.1,4706.0,19.318653]
[1759778093847,12.8748,4706.1,4706.0,2.144889]
[1759778094013,17.13652234,4706.1,4706.0,2.418]
[1759778094210,15.01162062,4706.1,4706.0,2.418]
[1759778094452,12.3,4706.1,4706.0,32.629818]
[1759778094739,12.3,4706.1,4706.0,37.59170248]
[1759778095145,13.53,4706.1,4706.0,37.59170248]
[1759778095643,13.53,4706.1,4706.0,37.25098144]
[1759778095843,13.53,4706.1,4706.0,38.76243852]
[1759778096051,13.53,4706.1,4706.0,39.39603852]
[1759778096214,13.53,4706.1,4706.0,37.88458144]
[1759778096628,14.76,4706.1,4706.0,37.88458144]
[1759778096830,11.06877158,4706.1,4706.0,37.88458144]
[1759778097523,10.42247598,4706.1,4706.0,38.22530248]
[1759778097722,6.73124756,4706.1,4706.0,38.22530248]
[1759778097917,7.96124756,4706.1,4706.0,38.22530248]
[1759778098347,7.31495196,4706.1,4706.0,38.22530248]
[1759778098917,3.62372354,4706.1,4706.0,38.22530248]
[1759778099454,4.20742794,4706.1,4706.0,38.22530248]
[1759778099815,0.51619952,4706.1,4706.0,38.22530248]
[1759778100246,0.35863775,4706.1,4706.0,38.22530248]
[1759778100420,2.62947435,4706.4,4706.2,0.6336]
[1759778100626,2.62947435,4706.4,4706.3,38.23911938]
[1759778100947,2.62947435,4706.4,4706.3,40.12438193]
[1759778101446,2.51873893,4706.4,4706.3,38.23911938]
[1759778101661,2.51873893,4706.4,4706.3,35.18951938]
[1759778101961,2.51873893,4706.4,4706.3,39.81251938]
[1759778102258,3.74873893,4706.4,4706.3,39.81251938]
[1759778102556,3.74873893,4706.4,4706.3,39.47179834]
[1759778102763,3.74873893,4706.4,4706.3,40.97847632]
[1759778102915,3.74873893,4706.4,4706.3,41.31919736]
[1759778103117,3.74873893,4706.4,4706.3,39.81251938]
[1759778103420,4.97873893,4706.4,4706.3,39.81251938]
[1759778103725,4.97873893,4706.4,4706.3,41.31848838]
[1759778103914,4.97873893,4706.4,4706.3,39.81251938]
[1759778104113,4.97873893,4706.4,4706.3,41.31842626]
[1759778104553,4.97873893,4706.4,4706.3,35.93315632]
[1759778104756,4.97873893,4706.4,4706.3,42.06171985]
[1759778104926,6.20873893,4706.4,4706.3,42.06171985]
[1759778105148,6.20873893,4706.4,4706.3,42.06153552]
[1759778105556,6.20873893,4706.4,4706.3,37.43853552]
[1759778105756,6.20873893,4706.4,4706.3,42.06153552]
[1759778106471,7.43873893,4706.4,4706.3,40.55615632]
[1759778107575,8.66873893,4706.4,4706.3,40.55615632]
[1759778108401,8.66873893,4706.4,4706.3,42.58773552]
[1759778108679,8.66873893,4706.4,4706.3,41.18875632]
[1759778109384,9.89873893,4706.4,4706.3,49.69203065]
[1759778110083,9.89873893,4706.4,4706.3,48.18875632]
[1759778110667,57.81200001,4706.5,4706.3,48.18875632]
[1759778110668,57.81200001,4706.5,4706.4,4.52476627]
[1759778110982,57.81200001,4706.5,4706.4,45.81337585]
[1759778111186,57.81200001,4706.5,4706.4,38.81337585]
[1759778111361,57.81200001,4706.5,4706.4,39.45051805]
[1759778111856,55.77894718,4706.5,4706.4,39.45051805]
[1759778112050,57.00894718,4706.5,4706.4,39.45051805]
[1759778112261,57.00894718,4706.5,4706.4,37.94761643]
[1759778112853,57.00894718,4706.5,4706.4,42.56961643]
[1759778113489,58.23894718,4706.5,4706.4,37.94761643]
[1759778113688,58.23894718,4706.5,4706.4,42.56961643]
[1759778114884,59.46894718,4706.5,4706.4,42.56961643]
[1759778115790,59.46894718,4706.5,4706.4,37.94761643]
[1759778115993,59.46894718,4706.5,4706.4,42.56961643]
[1759778116321,60.69894718,4706.5,4706.4,37.94761643]
[1759778116463,60.69894718,4706.5,4706.4,42.56961643]
[1759778116978,60.69894718,4706.5,4706.4,12.56961643]
[1759778117284,60.69894718,4706.5,4706.4,42.56961643]
[1759778117490,61.92894718,4706.5,4706.4,37.94761643]
[1759778117685,61.92894718,4706.5,4706.4,38.58121643]
[1759778117891,61.92894718,4706.5,4706.4,43.20321643]
[1759778118088,61.92894718,4706.5,4706.4,38.58121643]
[1759778118289,61.92894718,4706.5,4706.4,43.20321643]
[1759778118886,63.15894718,4706.5,4706.4,43.20321643]
[1759778120114,63.15894718,4706.5,4706.4,13.20321643]
[1759778120313,64.38894718,4706.5,4706.4,43.20321643]
[1759778121011,64.38894718,4706.5,4706.4,13.20221643]
[1759778121227,64.38894718,4706.5,4706.4,43.20221643]
[1759778121681,65.61894718,4706.5,4706.4,38.58121643]
[1759778121882,65.61894718,4706.5,4706.4,43.20221643]
[1759778122197,61.28142316,4706.5,4706.4,40.80221643]
[1759778122398,30.71139409,4706.5,4706.4,42.68747898]
[1759778123008,31.94139409,4706.5,4706.4,43.20221643]
[1759778123393,31.94139409,4706.5,4706.4,45.08747898]
[1759778123592,31.94139409,4706.5,4706.4,40.46647898]
[1759778123991,31.94139409,4706.5,4706.4,45.08747898]
[1759778124288,31.94139409,4706.5,4706.4,38.58121643]
[1759778124494,33.17139409,4706.5,4706.4,43.20221643]
[1759778125198,33.17139409,4706.5,4706.4,37.94761643]
[1759778125386,33.17139409,4706.5,4706.4,42.56861643]
[1759778125975,34.40139409,4706.5,4706.4,42.56861643]
[1759778126785,34.40139409,4706.5,4706.4,37.94761643]
[1759778126985,34.40139409,4706.5,4706.4,42.56861643]
[1759778127214,34.40139409,4706.5,4706.4,37.94761643]
[1759778127384,35.63139409,4706.5,4706.4,42.56861643]
[1759778127584,35.63139409,4706.5,4706.4,37.94761643]
[1759778128113,35.63139409,4706.5,4706.4,42.56861643]
[1759778128915,36.86139409,4706.5,4706.4,42.56861643]
[1759778129685,37.32029409,4706.5,4706.4,42.56861643]
[1759778129890,37.32029409,4706.5,4706.4,37.94761643]
[1759778130199,37.32029409,4706.5,4706.4,42.24462951]
[1759778130388,38.55029409,4706.5,4706.4,42.24462951]
[1759778130788,38.55029409,4706.5,4706.4,37.62362951]
[1759778131089,38.55029409,4706.5,4706.4,42.24462951]
[1759778131500,38.55029409,4706.5,4706.4,42.54347476]
[1759778131699,39.78029409,4706.5,4706.4,42.54347476]
[1759778132117,39.78029409,4706.5,4706.4,37.92247476]
[1759778132317,39.78029409,4706.5,4706.4,42.54347476]
[1759778132616,39.78029409,4706.5,4706.4,37.92247476]
[1759778132781,39.78029409,4706.5,4706.4,42.54347476]
[1759778133184,41.01029409,4706.5,4706.4,12.54347476]
[1759778133420,41.01029409,4706.5,4706.4,42.54347476]
[1759778134622,42.24029409,4706.5,4706.4,42.54347476]
[1759778134821,42.12950757,4706.5,4706.4,42.54347476]
[1759778135425,42.12950757,4706.5,4706.4,42.64987476]
[1759778136120,43.35950757,4706.5,4706.4,42.64987476]
[1759778136417,43.35950757,4706.5,4706.4,12.64987476]
[1759778136623,43.35950757,4706.5,4706.4,42.64987476]
[1759778137502,43.36150757,4706.5,4706.4,42.64987476]
[1759778137817,43.02602603,4706.5,4706.4,42.64987476]
[1759778138121,40.25398355,4706.5,4706.4,42.64987476]
[1759778138847,38.68850201,4706.5,4706.4,42.64987476]
[1759778139123,37.14645953,4706.5,4706.4,42.64987476]
[1759778139985,33.55659645,4706.5,4706.4,42.64987476]
[1759778140317,32.35003551,4706.5,4706.4,42.64987476]
[1759778140501,33.58003551,4706.5,4706.4,42.64987476]
[1759778140704,32.01455397,4706.5,4706.4,42.64987476]
[1759778141023,30.44907243,4706.5,4706.4,42.64987476]
[1759778141221,29.24251149,4706.5,4706.4,42.64987476]
[1759778141805,28.90702995,4706.5,4706.4,42.64987476]
[1759778142001,28.2830177,4706.5,4706.4,43.28347476]
[1759778143223,29.5130177,4706.5,4706.4,43.28347476]
[1759778143837,29.9428177,4706.5,4706.4,38.66247476]
[1759778144135,29.9428177,4706.5,4706.4,42.64787476]
[1759778144546,31.1728177,4706.5,4706.4,42.64787476]
[1759778144721,31.1728177,4706.5,4706.4,38.02887476]
[1759778145041,31.1728177,4706.5,4706.4,42.64787476]
[1759778146113,32.4028177,4706.5,4706.4,42.64787476]
[1759778148060,33.6328177,4706.5,4706.4,42.64787476]
[1759778148614,33.6328177,4706.5,4706.4,38.02887476]
[1759778148952,33.6328177,4706.5,4706.4,42.64787476]
[1759778149314,34.8628177,4706.5,4706.4,42.64787476]
[1759778150017,34.8628177,4706.5,4706.4,34.88290847]
[1759778150239,34.8628177,4706.5,4706.4,41.26476627]
[1759778150774,36.0928177,4706.5,4706.4,41.26476627]
[1759778151273,35.6630177,4706.5,4706.4,41.58366231]
[1759778151568,35.6630177,4706.5,4706.4,41.87092423]
[1759778151750,36.0928177,4706.5,4706.4,41.87092423]
[1759778152139,37.3228177,4706.5,4706.4,41.87092423]
[1759778152372,37.3228177,4706.5,4706.4,37.25192423]
[1759778152549,37.3228177,4706.5,4706.4,41.58366231]
[1759778153072,37.3228177,4706.5,4706.4,42.50816252]
[1759778153543,38.5528177,4706.5,4706.4,42.50816252]
[1759778153741,38.5528177,4706.5,4706.4,12.50816252]
[1759778154045,38.5528177,4706.5,4706.4,42.50816252]
[1759778155070,39.7828177,4706.5,4706.4,42.50816252]
[1759778156373,41.0128177,4706.5,4706.4,42.50816252]
[1759778157374,41.0128177,4706.5,4706.4,37.88916252]
[1759778157568,41.0128177,4706.5,4706.4,42.50916252]
[1759778157789,42.2428177,4706.5,4706.4,35.76439625]
[1759778158089,43.12187236,4706.5,4706.4,23.718761]
[1759778158277,43.12187236,4706.5,4706.4,26.118761]
[1759778158883,43.12187236,4706.5,4706.4,31.448978]
[1759778159185,44.35187236,4706.5,4706.4,30.972737]
[1759778159356,43.4728177,4706.5,4706.4,30.972737]
[1759778159976,43.4728177,4706.5,4706.4,37.275668]
[1759778160394,44.7028177,4706.5,4706.4,37.275668]
[1759778160684,44.7028177,4706.5,4706.4,37.56292992]
[1759778160882,44.7028177,4706.5,4706.4,34.33326192]
[1759778161083,44.7028177,4706.5,4706.4,38.666]
[1759778161488,46.83963832,4706.5,4706.4,38.666]
[1759778161691,48.06963832,4706.5,4706.4,34.046]
[1759778161988,48.06963832,4706.5,4706.4,36.459]
[1759778162364,48.06963832,4706.5,4706.4,8.632472]
[1759778162991,49.29963832,4706.5,4706.4,26.731512]
[1759778163502,49.29963832,4706.5,4706.4,23.062608]
[1759778163988,49.29963832,4706.5,4706.4,36.459]
[1759778164155,49.29963832,4706.5,4706.4,33.494034]
[1759778164358,50.52963832,4706.5,4706.4,35.907034]
[1759778164771,50.52963832,4706.5,4706.4,25.307844]
[1759778164959,50.52963832,4706.5,4706.4,24.316239]
[1759778165169,50.52963832,4706.5,4706.4,22.203738]
[1759778165367,50.52963832,4706.5,4706.4,19.790738]
[1759778165678,50.52963832,4706.5,4706.4,22.203738]
[1759778165880,51.75963832,4706.5,4706.4,18.718731]
[1759778166090,51.75963832,4706.5,4706.4,22.23434]
[1759778166479,51.75963832,4706.5,4706.4,20.944504]
[1759778167088,51.75963832,4706.5,4706.4,23.241404]
[1759778167299,52.98963832,4706.5,4706.4,23.241404]
[1759778168193,52.98963832,4706.5,4706.4,25.945589]
[1759778168390,52.98963832,4706.5,4706.4,23.532589]
[1759778168580,54.21963832,4706.5,4706.4,6.400214]
[1759778168788,54.21963832,4706.5,4706.4,8.813214]
[1759778169173,54.21963832,4706.5,4706.4,6.400214]
[1759778169371,56.34435945,4706.5,4706.4,2.4]
[1759778169579,2.12476627,4706.4,4706.3,0.001]
[1759778169896,4.26158689,4706.4,4706.3,0.001]
[1759778170100,5.94808689,4706.4,4706.3,0.001]
[1759778170415,5.94808689,4706.4,4706.3,2.414]
[1759778171479,7.17808689,4706.4,4706.3,2.414]
[1759778172080,7.17808689,4706.4,4706.3,0.001]
[1759778172292,7.81168689,4706.4,4706.3,0.001]
[1759778172639,7.81168689,4706.4,4706.3,2.414]
[1759778172836,9.04168689,4706.4,4706.3,2.414]
[1759778173011,2.75850172,4706.1,4706.0,0.001]
[1759778173201,2.86490172,4706.1,4706.0,0.001]
[1759778173402,3.32140172,4706.1,4706.0,0.001]
[1759778174135,3.32140172,4706.1,4706.0,1.599]
[1759778174343,4.55140172,4706.1,4706.0,1.599]
[1759778174503,6.68722236,4706.1,4706.0,1.599]
[1759778174708,6.68722236,4706.1,4706.0,0.001]
[1759778174932,6.68722236,4706.1,4706.0,1.599]
[1759778175115,12.08150914,4706.1,4706.0,0.001]
[1759778175320,12.08150914,4706.1,4706.0,1.599]
[1759778175635,13.31150914,4706.1,4706.0,1.599]
[1759778176325,13.31150914,4706.1,4706.0,2.414]
[1759778177058,14.54150914,4706.1,4706.0,2.414]
[1759778178133,9.14722236,4706.1,4706.0,2.414]
[1759778179858,8.51362236,4706.1,4706.0,2.414]
[1759778180262,8.51362236,4706.1,4706.0,0.001]
[1759778180459,5.93222064,4706.1,4706.0,0.001]
[1759778180654,5.93222064,4706.1,4706.0,2.414]
[1759778180855,3.7964,4706.1,4706.0,2.414]
[1759778181432,3.7964,4706.1,4706.0,12.603262]
[1759778181636,3.69,4706.1,4706.0,31.005185]
[1759778181941,3.69,4706.1,4706.0,31.29244692]
[1759778182265,4.92,4706.1,4706.0,31.29244692]
[1759778182454,4.92,4706.1,4706.0,27.92393592]
[1759778182659,4.92,4706.1,4706.0,35.54436192]
[1759778183965,6.15,4706.1,4706.0,35.54436192]
[1759778185150,6.15,4706.1,4706.0,14.57284292]
[1759778185466,7.4864,4706.1,4706.0,5.037063]
[1759778185634,7.82897859,4706.1,4706.0,18.910884]
[1759778185829,7.4864,4706.1,4706.0,21.323884]
[1759778186231,7.4864,4706.1,4706.0,18.910884]
[1759778186472,7.4864,4706.1,4706.0,21.323884]
[1759778186659,8.7164,4706.1,4706.0,34.814]
[1759778186858,8.7164,4706.1,4706.0,32.401]
[1759778187067,8.7164,4706.1,4706.0,34.813]
[1759778187279,8.7164,4706.1,4706.0,27.931868]
[1759778187637,8.7164,4706.1,4706.0,27.007721]
[1759778187862,8.7164,4706.1,4706.0,29.419721]
[1759778188061,9.9464,4706.1,4706.0,29.419721]
[1759778188260,9.9464,4706.1,4706.0,28.848616]
[1759778188455,9.9464,4706.1,4706.0,20.851107]
[1759778188664,12.53972062,4706.1,4706.0,24.129595]
[1759778189368,12.53972062,4706.1,4706.0,2.413]
[1759778189672,13.76972062,4706.1,4706.0,2.413]
[1759778190371,13.31322062,4706.1,4706.0,21.067762]
[1759778190585,13.31322062,4706.1,4706.0,18.064001]
[1759778191174,14.54322062,4706.1,4706.0,18.592895]
[1759778191572,12.4064,4706.1,4706.0,17.642705]
[1759778192170,12.4064,4706.1,4706.0,20.784532]
[1759778192381,13.6364,4706.1,4706.0,20.784532]
[1759778192898,13.53,4706.1,4706.0,20.784532]
[1759778193057,13.53,4706.1,4706.0,21.236132]
[1759778193253,13.53,4706.1,4706.0,30.478893]
[1759778193456,13.53,4706.1,4706.0,32.890893]
[1759778193689,14.76,4706.1,4706.0,32.439293]
[1759778194197,14.76,4706.1,4706.0,32.39518033]
[1759778194395,14.76,4706.1,4706.0,35.36518033]
[1759778195210,15.99,4706.1,4706.0,35.36518033]
[1759778196296,15.99,4706.1,4706.0,32.95318033]
[1759778196468,17.22,4706.1,4706.0,35.36518033]
[1759778197894,18.45,4706.1,4706.0,35.36518033]
[1759778198103,18.45,4706.1,4706.0,34.91358033]
[1759778198598,18.45,4706.1,4706.0,16.57179333]
[1759778199273,20.1362,4706.1,4706.0,20.34617333]
[1759778199970,22.27302062,4706.1,4706.0,16.95333033]
[1759778200169,24.39792234,4706.1,4706.0,2.412]
[1759778200570,25.62792234,4706.1,4706.0,2.412]
[1759778201288,23.50302062,4706.1,4706.0,2.412]
[1759778201798,25.62792234,4706.1,4706.0,2.412]
[1759778201994,26.85792234,4706.1,4706.0,2.412]
[1759778202602,26.85792234,4706.1,4705.9,0.001]
[1759778202603,2.12494687,4706.0,4705.9,0.001]
[1759778202768,4.26176749,4706.0,4705.9,2.413]
[1759778202967,4.71796749,4706.0,4705.9,2.413]
[1759778203267,2.13682062,4706.0,4705.9,2.413]
[1759778203485,3.36682062,4706.0,4705.9,14.255115]
[1759778203692,3.82302062,4706.0,4705.9,0.001]
[1759778203901,5.94796749,4706.0,4705.9,0.001]
[1759778204173,5.94796749,4706.0,4705.9,2.251]
[1759778204881,7.17796749,4706.0,4705.9,2.251]
[1759778206066,8.40796749,4706.0,4705.9,2.251]
[1759778207026,8.40796749,4706.0,4705.9,0.001]
[1759778207227,8.40796749,4706.0,4705.9,2.413]
[1759778207414,9.63796749,4706.0,4705.9,2.413]
[1759778208126,9.18176749,4706.0,4705.9,2.413]
[1759778208296,9.63796749,4706.0,4705.9,2.413]
[1759778208496,5.0264,4706.0,4705.9,27.899942]
[1759778208814,5.4826,4706.0,4705.9,0.001]
[1759778209015,8.83754687,4706.0,4705.9,2.413]
[1759778209246,6.7126,4706.0,4705.9,2.413]
[1759778209401,8.38134687,4706.0,4705.9,2.413]